bitfinex/quotes_BTCUSD_20251230
["timestamp","ask_amount","ask_price","bid_price","bid_amount"]
[1767103729802,0.02276415,87996.0,87981.0,0.01136609]
[1767103730136,0.02276415,87996.0,87983.0,0.01136583]
[1767103730364,0.02276415,87996.0,87984.0,0.0113657]
[1767103730574,0.0114,87996.0,87984.0,0.0113657]
[1767103730784,0.0114,87996.0,87985.0,0.01136557]
[1767103730971,0.02276415,87996.0,87984.0,0.0113657]
[1767103731174,0.0114,87996.0,87986.0,0.01136544]
[1767103731355,0.0114,87996.0,87985.0,0.01136557]
[1767103731556,0.0114,87996.0,87986.0,0.01136544]
[1767103731959,0.0114,87996.0,87987.0,0.01136531]
[1767103732579,0.0114,87996.0,87989.0,0.01136505]
[1767103732766,0.0114,87996.0,87987.0,0.01136531]
[1767103732968,0.0114,87996.0,87988.0,0.01136518]
[1767103733392,0.0114,87996.0,87989.0,0.01136505]
[1767103733961,0.0114,87996.0,87988.0,0.01136518]
[1767103734829,0.0114,87996.0,87986.0,0.01136544]
[1767103735057,0.0114,87996.0,87988.0,0.01136518]
[1767103736027,0.0114,87996.0,87987.0,0.01136531]
[1767103736427,0.0114,87996.0,87988.0,0.01136518]
[1767103736835,0.0114,87996.0,87986.0,0.01136544]
[1767103737031,0.0114,87996.0,87988.0,0.01136518]
[1767103737525,0.0114,87996.0,87987.0,0.01136531]
[1767103739594,0.000549,87987.0,87985.0,0.01136557]
[1767103739796,0.000549,87987.0,87985.0,0.22236557]
[1767103740016,0.0114,87996.0,87985.0,0.22236557]
[1767103740521,0.0114,87996.0,87986.0,0.01136544]
[1767103740720,0.0114,87996.0,87985.0,0.22236557]
[1767103741155,0.0005471,87997.0,87994.0,0.211]
[1767103741330,0.0002,87999.0,87996.0,0.22236415]
[1767103741331,1e-08,87999.0,87996.0,0.22236415]
[1767103741778,1e-08,87999.0,87996.0,0.01136415]
[1767103742753,1e-08,87999.0,87997.0,0.211]
[1767103743004,0.01189278,88012.0,88000.0,0.01136363]
[1767103743198,0.01225,88012.0,88000.0,0.01136363]
[1767103743598,0.00088792,88012.0,88000.0,0.01136363]
[1767103743799,0.01136221,88011.0,87997.0,0.23376402]
[1767103744036,0.01225,88012.0,87999.0,0.211]
[1767103744205,0.01136221,88011.0,87999.0,0.22236376]
[1767103744599,0.01225,88012.0,87999.0,0.22236376]
[1767103744797,0.00088792,88012.0,88000.0,0.01136363]
[1767103745003,0.01225,88012.0,87999.0,0.211]
[1767103745252,0.01136221,88011.0,87999.0,0.211]
[1767103745501,0.0113626,88008.0,87997.0,0.0114]
[1767103745655,0.01136234,88010.0,87997.0,1e-08]
[1767103745656,0.01136286,88006.0,87997.0,1e-08]
[1767103745857,0.001099,87997.0,87994.0,0.02276441]
[1767103746066,0.0113626,88008.0,87995.0,0.01136428]
[1767103746610,0.01136273,88007.0,87994.0,0.23376441]
[1767103746826,0.01136273,88007.0,87995.0,0.01136428]
[1767103747878,0.0113626,88008.0,87995.0,0.01136428]
[1767103748093,0.0113626,88008.0,87994.0,0.23376441]
[1767103748313,0.01136273,88007.0,87995.0,0.01136428]
[1767103748762,0.0113626,88008.0,87996.0,0.01136415]
[1767103748980,0.0113626,88008.0,87995.0,0.01136428]
[1767103749228,0.01136247,88009.0,87997.0,0.01136402]
[1767103749463,0.01136234,88010.0,87997.0,0.01136402]
[1767103749673,0.00088792,88012.0,88000.0,0.01136363]
[1767103749871,0.00088792,88012.0,87999.0,0.01136376]
[1767103750129,0.00088792,88012.0,88007.0,0.05681358]
[1767103750332,0.00088792,88012.0,88005.0,0.05681495]
[1767103750491,0.00088792,88012.0,88009.0,0.01136247]
[1767103750688,0.00088792,88012.0,88008.0,0.0113626]
[1767103750886,0.00088792,88012.0,88010.0,0.05681132]
[1767103751090,1e-08,88012.0,88010.0,0.05681132]
[1767103751517,0.0002,88025.0,88021.0,0.01136092]
[1767103751721,0.000549,88021.0,88019.0,0.01136118]
[1767103752227,0.00030711,88025.0,88020.0,0.01136105]
[1767103753019,0.00030711,88025.0,88018.0,0.01136131]
[1767103753223,0.00030711,88025.0,88019.0,0.01136118]
[1767103753758,0.00030711,88025.0,88015.0,0.06816993]
[1767103753939,0.00030711,88025.0,88017.0,0.01136144]
[1767103754332,0.001099,88017.0,88014.0,0.22236182]
[1767103754776,0.00030711,88025.0,88015.0,0.01136169]
[1767103754974,0.00030711,88025.0,88016.0,0.01136157]
[1767103755175,0.00030711,88025.0,88019.0,0.01136118]
[1767103755337,0.00030711,88025.0,88020.0,0.01136105]
[1767103756067,0.00030711,88025.0,88022.0,0.01136079]
[1767103756272,1.1e-07,88025.0,88022.0,0.01136079]
[1767103758727,1.1e-07,88025.0,88020.0,0.06816579]
[1767103758728,1.1e-07,88025.0,88020.0,0.01136105]
[1767103758929,1.1e-07,88025.0,88021.0,0.01136092]
[1767103759951,0.000307,88021.0,88018.0,0.01136131]
[1767103760574,1.1e-07,88025.0,88020.0,0.01136105]
[1767103760985,1.1e-07,88025.0,88017.0,0.01136144]
[1767103761511,1.1e-07,88025.0,88010.0,0.23376234]
[1767103761815,1.1e-07,88025.0,88016.0,0.01136157]
[1767103762027,1.1e-07,88025.0,88017.0,0.01136144]
[1767103762775,1.1e-07,88025.0,88015.0,0.01136169]
[1767103763196,1.1e-07,88025.0,88013.0,0.01136195]
[1767103763197,1.1e-07,88025.0,88016.0,0.01136157]
[1767103763411,0.0114,88024.0,88017.0,0.01136144]
[1767103763628,0.0114,88024.0,88005.0,0.0002]
[1767103763840,0.0114,88024.0,88013.0,0.01136195]
[1767103763841,0.00055,88016.0,88013.0,0.01136195]
[1767103764284,0.55432667,88022.0,88014.0,0.01136182]
[1767103764494,0.56572667,88024.0,88013.0,0.01136195]
[1767103764747,0.56572667,88024.0,88010.0,0.01136234]
[1767103764748,0.01136066,88023.0,88010.0,0.01136234]
[1767103764978,0.55432667,88020.0,88011.0,0.01136221]
[1767103765297,0.55432667,88020.0,88009.0,0.06817432]
[1767103765523,0.55432667,88020.0,88010.0,0.01136234]
[1767103765747,0.01136079,88022.0,88010.0,0.01136234]
[1767103765973,0.55432667,88020.0,88011.0,0.01136221]
[1767103766401,0.55432667,88020.0,88012.0,0.01136208]
[1767103766599,0.55432667,88022.0,88011.0,0.01136221]
[1767103766995,0.55432667,88022.0,88013.0,0.01136195]
[1767103767205,0.55432667,88022.0,88014.0,0.01136182]
[1767103767405,0.56572667,88024.0,88014.0,0.01136182]
[1767103767804,0.56572667,88024.0,88013.0,0.01136195]
[1767103768093,0.5770872,88024.0,88012.0,0.01136208]
[1767103768268,0.55432667,88022.0,88011.0,0.01136221]
[1767103769075,0.56568746,88022.0,88005.0,0.05701454]
[1767103769371,0.55432667,88020.0,88009.0,0.01136247]
[1767103769532,0.00055,88009.0,88005.0,0.0002]
[1767103769739,0.01136247,88009.0,88005.0,0.0002]
[1767103769960,0.01136234,88010.0,88005.0,0.0002]
[1767103770320,0.0113626,88008.0,87996.0,0.01136415]
[1767103770518,0.0002,88005.0,87997.0,0.01136402]
[1767103770861,0.01136247,88009.0,87997.0,0.01136402]
[1767103771073,0.0113626,88008.0,87995.0,0.01136428]
[1767103771271,0.56568966,88005.0,87991.0,0.06818839]
[1767103771500,0.55432667,88001.0,87993.0,0.01136454]
[1767103771706,0.01136299,88005.0,87993.0,0.01136454]
[1767103771910,0.01136299,88005.0,87994.0,0.01136441]
[1767103772120,0.0113626,88008.0,87995.0,0.01136428]
[1767103772319,0.01136273,88007.0,87994.0,0.01136441]
[1767103772497,0.0113626,88008.0,87995.0,0.01136428]
[1767103773280,0.01136273,88007.0,87995.0,0.01136428]
[1767103773758,0.01136273,88007.0,87994.0,0.01136441]
[1767103774117,0.01136273,88007.0,87993.0,0.01136454]
[1767103774391,0.55432667,88003.0,87993.0,0.01136454]
[1767103774600,0.55432667,88003.0,87992.0,0.01136466]
[1767103774776,0.01136363,88000.0,87985.0,0.01136557]
[1767103774954,0.55432667,88000.0,87988.0,0.02276518]
[1767103775160,0.55432667,88000.0,87989.0,0.01136505]
[1767103775364,0.5656903,88000.0,87988.0,0.02276518]
[1767103775751,0.55432667,88000.0,87989.0,0.01136505]
[1767103776190,0.55432667,88000.0,87991.0,0.01136479]
[1767103776427,0.55432667,88000.0,87992.0,0.01136466]
[1767103776918,0.55432667,88002.0,87991.0,0.01136479]
[1767103777099,0.0113635,88001.0,87989.0,0.01136505]
[1767103777309,0.55432667,88000.0,87990.0,0.01136492]
[1767103777642,0.55432667,88000.0,87989.0,0.01136505]
[1767103777977,0.55432667,88000.0,87990.0,0.01136492]
[1767103778160,0.02276311,88004.0,87991.0,0.01136479]
[1767103778360,0.55432667,88000.0,87991.0,0.01136479]
[1767103778779,0.01136376,87999.0,87987.0,0.0002]
[1767103778957,0.01136415,87996.0,87987.0,0.0002]
[1767103779159,0.56569069,87997.0,87987.0,0.0002]
[1767103779160,0.55432667,87997.0,87987.0,0.0002]
[1767103779357,0.55432667,88000.0,87988.0,0.01136518]
[1767103779569,0.55432667,88000.0,87989.0,0.01136505]
[1767103779999,0.00055,87989.0,87987.0,0.21549531]
[1767103780199,0.00019278,87989.0,87987.0,0.000307]
[1767103780531,0.0114,87997.0,87987.0,0.000307]
[1767103780704,0.0114,87997.0,87987.0,0.01167231]
[1767103780904,0.0114,87997.0,87987.0,0.000307]
[1767103781101,0.0114,88002.0,87989.0,0.01136505]
[1767103781299,0.55432667,88000.0,87989.0,0.01136505]
[1767103781518,0.55432667,88000.0,87987.0,0.01167231]
[1767103781694,0.5656903,88000.0,87988.0,0.01136518]
[1767103781907,0.5656903,88000.0,87987.0,0.01167231]
[1767103782109,0.05682116,87996.0,87987.0,0.000307]
[1767103782287,0.01136454,87993.0,87987.0,0.000114]
[1767103782491,0.01136428,87995.0,87987.0,0.000114]
[1767103782735,0.01136454,87993.0,87987.0,0.000114]
[1767103782927,0.01136441,87994.0,87987.0,0.000114]
[1767103784471,0.02276428,87995.0,87987.0,0.000114]
[1767103784680,0.01136441,87994.0,87987.0,0.000114]
[1767103785535,0.02276428,87995.0,87987.0,0.000114]
[1767103785945,0.01136441,87994.0,87987.0,0.000114]
[1767103786139,0.02276428,87995.0,87987.0,0.000114]
[1767103786317,0.0114,87995.0,87987.0,0.000114]
[1767103786554,0.02276428,87995.0,87987.0,0.000114]
[1767103786968,0.01136441,87994.0,87987.0,0.000114]
[1767103787383,0.02276428,87995.0,87987.0,0.500114]
[1767103787548,0.01136441,87994.0,87987.0,0.500114]
[1767103788480,0.01136492,87990.0,87987.0,0.500114]
[1767103788805,0.01136492,87990.0,87987.0,0.47819367]
[1767103788806,0.05682528,87989.0,87987.0,0.47819367]
[1767103788960,0.0114,87988.0,87987.0,0.47819367]
[1767103790251,0.010851,87988.0,87987.0,0.47819367]
[1767103797151,0.01136557,87985.0,87979.0,0.0001241]
[1767103797328,0.01136596,87982.0,87979.0,1e-07]
[1767103797533,0.0114,87981.0,87979.0,1e-07]
[1767103800428,0.01136712,87973.0,87961.0,0.0004999]
[1767103800726,0.55432667,87971.0,87961.0,0.01197428]
[1767103800947,0.0114,87972.0,87961.0,0.01197428]
[1767103801246,0.011276,87972.0,87962.0,0.05684272]
[1767103801409,0.011276,87972.0,87963.0,0.01136841]
[1767103801631,0.011276,87972.0,87965.0,0.01136815]
[1767103802447,0.0114,87972.0,87970.0,0.05683706]
[1767103802648,0.0114,87972.0,87969.0,0.01136764]
[1767103803446,0.55432667,87990.0,87976.0,0.01136673]
[1767103803620,0.0114,87989.0,87979.0,0.01136634]
[1767103804039,0.0114,87989.0,87977.0,0.06819963]
[1767103804377,0.02276505,87989.0,87976.0,0.01136673]
[1767103804578,0.0114,87989.0,87977.0,0.0113666]
[1767103804747,0.0114,87989.0,87978.0,0.01136647]
[1767103805287,0.0114,87989.0,87977.0,0.06819956]
[1767103805288,0.0114,87989.0,87977.0,0.0113666]
[1767103805605,0.0114,87989.0,87978.0,0.01136647]
[1767103805859,0.0114,87989.0,87977.0,0.05683303]
[1767103806014,0.0114,87989.0,87980.0,0.01136621]
[1767103806215,0.0114,87989.0,87979.0,0.01136634]
[1767103806454,0.0114,87989.0,87978.0,0.01136647]
[1767103806835,0.0114,87989.0,87975.0,0.0682007]
[1767103807044,0.0114,87989.0,87978.0,0.01136647]
[1767103807369,0.0114,87989.0,87977.0,0.0113666]
[1767103808158,0.0114,87989.0,87976.0,0.01136673]
[1767103808373,0.02276505,87989.0,87976.0,0.01136673]
[1767103808583,0.02276505,87989.0,87977.0,0.0113666]
[1767103809148,0.0114,87989.0,87980.0,0.01136621]
[1767103809488,0.0114,87989.0,87978.0,0.01136647]
[1767103809687,0.02276505,87989.0,87976.0,0.01136673]
[1767103809900,0.02276505,87989.0,87977.0,0.0113666]
[1767103810397,0.0114,87989.0,87977.0,0.0113666]
[1767103810792,0.0114,87989.0,87980.0,0.01136621]
[1767103811100,0.0114,87992.0,87982.0,0.01136596]
[1767103811291,0.0114,87992.0,87981.0,0.01136609]
[1767103811595,0.0114,87992.0,87982.0,0.01136596]
[1767103811831,0.0114,87992.0,87980.0,0.01136621]
[1767103811997,0.0114,87992.0,87981.0,0.01136609]
[1767103812786,0.0114,87992.0,87982.0,0.01136596]
[1767103812987,0.0114,87992.0,87981.0,0.01136609]
[1767103813991,0.0114,87992.0,87982.0,0.01136596]
[1767103815108,0.0114,87992.0,87980.0,0.01136621]
[1767103815313,0.0114,87992.0,87981.0,0.01136609]
[1767103815516,0.0114,87992.0,87980.0,0.01136621]
[1767103815723,0.02276466,87992.0,87980.0,0.01136621]
[1767103815897,0.0114,87992.0,87981.0,0.01136609]
[1767103816287,0.0114,87992.0,87983.0,0.01136583]
[1767103817114,0.0114,87992.0,87984.0,0.0113657]
[1767103817538,0.0114,87992.0,87983.0,0.01136583]
[1767103817766,0.0114,87992.0,87984.0,0.0113657]
[1767103819357,0.0114,87992.0,87982.0,0.01136596]
[1767103819958,0.0114,87992.0,87981.0,0.06819615]
[1767103820159,0.0114,87992.0,87984.0,0.0113657]
[1767103820375,0.0114,87992.0,87983.0,0.01136583]
[1767103820908,0.0114,87992.0,87984.0,0.0113657]
[1767103821946,0.0114,87992.0,87985.0,0.01136557]
[1767103823040,0.0114,87992.0,87986.0,0.01136544]
[1767103823249,0.0114,87992.0,87983.0,0.01136583]
[1767103823570,0.0114,87992.0,87985.0,0.01136557]
[1767103823748,0.0114,87992.0,87984.0,0.0113657]
[1767103823953,0.0114,87992.0,87985.0,0.01136557]
[1767103826047,0.01085,87992.0,87987.0,0.01136531]
[1767103826227,0.01085,87992.0,87989.0,0.01136505]
[1767103826768,0.01085,87992.0,87987.0,0.01136531]
[1767103827147,0.01085,87992.0,87988.0,0.01136518]
[1767103827318,0.010919,87992.0,87988.0,0.01136518]
[1767103828572,0.0005471,87997.0,87994.0,0.01136441]
[1767103828799,0.0005471,87997.0,87993.0,0.01136454]
[1767103829000,0.0005471,87997.0,87993.0,0.23380454]
[1767103829418,0.0005471,87997.0,87994.0,0.01136441]
[1767103829564,0.0005471,87997.0,87994.0,0.23380441]
[1767103830204,1e-08,87997.0,87995.0,0.05682095]
[1767103830414,1e-08,87997.0,87996.0,0.22244]
[1767103833934,0.0114,88014.0,88006.0,0.01136286]
[1767103834129,0.0114,88014.0,88007.0,0.12749802]
[1767103834130,0.0003574,88014.0,88007.0,0.12749802]
[1767103835116,0.0003574,88014.0,88002.0,0.06818026]
[1767103835117,0.0003574,88014.0,88011.0,0.01136221]
[1767103835318,0.0003574,88014.0,88011.0,0.22244]
[1767103835560,0.0003574,88014.0,88008.0,0.0113626]
[1767103835743,0.0003574,88014.0,88009.0,0.01136247]
[1767103836340,0.0003574,88014.0,88010.0,0.01136234]
[1767103836572,0.0003574,88014.0,88011.0,0.01136221]
[1767103836731,0.00055,88011.0,88008.0,0.0113626]
[1767103837143,0.0003574,88014.0,88009.0,0.01136247]
[1767103837355,0.0003574,88014.0,88008.0,0.0113626]
[1767103837547,0.0003574,88014.0,88009.0,0.01136247]
[1767103837751,0.0003574,88014.0,88010.0,0.22244]
[1767103838534,0.00055,88010.0,88002.0,0.01136337]
[1767103838745,0.0003574,88014.0,88002.0,0.01136337]
[1767103838943,0.0003574,88014.0,88003.0,0.01136324]
[1767103839152,0.0002,88025.0,88020.0,0.01136105]
[1767103839387,0.00030151,88025.0,88021.0,0.22244]
[1767103840819,0.00030151,88025.0,88021.0,0.23380092]
[1767103841164,0.00030151,88025.0,88022.0,0.01136079]
[1767103841464,0.00030151,88025.0,88021.0,0.22244]
[1767103841705,0.00030151,88025.0,88022.0,0.01136079]
[1767103842571,0.0002506,88031.0,88028.0,0.01136002]
[1767103842993,0.0002506,88031.0,88027.0,0.13885817]
[1767103843628,0.0002506,88031.0,88027.0,0.12749802]
[1767103844233,0.0002506,88031.0,88027.0,0.12694802]
[1767103846474,0.0002506,88031.0,88027.0,0.13830817]
[1767103846679,0.0002506,88031.0,88027.0,0.12694802]
[1767103847855,0.0002506,88031.0,88028.0,0.01136002]
[1767103848220,0.0002506,88031.0,88027.0,0.13830817]
[1767103848696,0.0002506,88031.0,88028.0,0.01136002]
[1767103848907,6e-07,88031.0,88028.0,0.01136002]
[1767103849988,0.00025,88028.0,88027.0,0.12694802]
[1767103850350,6e-07,88031.0,88028.0,0.01136002]
[1767103850652,6e-07,88031.0,88027.0,0.12694802]
[1767103850887,6e-07,88031.0,88027.0,0.13830817]
[1767103851273,6e-07,88031.0,88028.0,0.01136002]
[1767103851823,6e-07,88031.0,88027.0,0.13830817]
[1767103852324,6e-07,88031.0,88028.0,0.01136002]
[1767103852622,6e-07,88031.0,88027.0,0.12694802]
[1767103852766,6e-07,88031.0,88028.0,0.01136002]
[1767103852970,6e-07,88031.0,88027.0,0.12694802]
[1767103853405,6e-07,88031.0,88027.0,0.12669802]
[1767103854014,6e-07,88031.0,88027.0,0.32198802]
[1767103856632,6e-07,88031.0,88027.0,0.12669802]
[1767103857712,6e-07,88031.0,88027.0,0.13805817]
[1767103858083,6e-07,88031.0,88028.0,0.01136002]
[1767103858498,6e-07,88031.0,88027.0,0.13805817]
[1767103858700,6e-07,88031.0,88028.0,0.01136002]
[1767103858913,6e-07,88031.0,88027.0,0.12669802]
[1767103860252,6e-07,88031.0,88027.0,0.13805817]
[1767103860659,6e-07,88031.0,88027.0,0.12669802]
[1767103861022,6e-07,88031.0,88022.0,0.0114]
[1767103861447,6e-07,88031.0,88009.0,0.01136247]
[1767103861758,0.01136131,88018.0,88011.0,0.12749802]
[1767103861962,0.01136144,88017.0,88009.0,0.00010151]
[1767103862162,0.01136131,88018.0,88009.0,0.00010151]
[1767103862523,0.01136118,88019.0,88009.0,0.00010151]
[1767103863097,0.01136144,88017.0,88009.0,0.00010151]
[1767103863302,0.01136157,88016.0,88009.0,0.00010151]
[1767103863609,0.01136144,88017.0,88009.0,0.00010151]
[1767103863809,0.01136157,88016.0,88009.0,0.00010151]
[1767103864187,0.07956584,88021.0,88009.0,0.00010151]
[1767103864390,0.01136118,88019.0,88009.0,0.00010151]
[1767103864576,0.01136131,88018.0,88009.0,0.00010151]
[1767103864775,0.01136144,88017.0,88009.0,0.00010151]
[1767103865177,0.01136157,88016.0,88009.0,0.00010151]
[1767103865559,0.01136169,88015.0,88009.0,0.00010151]
[1767103865987,0.01136144,88017.0,88009.0,0.00010151]
[1767103866214,0.01136157,88016.0,88009.0,0.00010151]
[1767103866414,0.01136131,88018.0,88009.0,0.00010151]
[1767103866608,0.01136144,88017.0,88009.0,0.00010151]
[1767103867943,0.01136157,88016.0,88009.0,0.00010151]
[1767103868362,0.01136144,88017.0,88009.0,0.00010151]
[1767103868679,0.01136131,88018.0,88009.0,0.00010151]
[1767103868827,0.01136144,88017.0,88009.0,0.00010151]
[1767103869481,0.01136157,88016.0,88009.0,0.00010151]
[1767103869678,0.0681691,88017.0,88009.0,0.00010151]
[1767103869679,0.01136169,88015.0,88009.0,0.00010151]
[1767103869888,0.01136182,88014.0,88009.0,0.00010151]
[1767103870041,0.01136208,88012.0,88009.0,0.00010151]
[1767103870243,0.56610746,88010.0,87997.0,0.01136402]
[1767103870559,0.01136234,88010.0,87999.0,0.0002]
[1767103870774,0.01136247,88009.0,87999.0,0.0002]
[1767103871122,0.56610746,88010.0,87999.0,0.0002]
[1767103872237,0.55474512,88010.0,87999.0,0.05701835]
[1767103872439,0.55474512,88010.0,88001.0,0.0113635]
[1767103872651,0.55474512,88010.0,87999.0,0.05701835]
[1767103873038,0.55474512,88010.0,87999.0,0.0002]
[1767103873213,0.55474512,88010.0,88000.0,0.01136363]
[1767103874146,0.01136208,88012.0,88000.0,0.01136363]
[1767103874352,0.55474512,88010.0,88000.0,0.01136363]
[1767103874559,0.55461594,88010.0,88000.0,0.01136363]
[1767103874895,0.55461594,88010.0,87999.0,0.0002]
[1767103875279,0.55461594,88010.0,88001.0,0.0113635]
[1767103875686,0.55461594,88010.0,88000.0,0.01136363]
[1767103876285,0.55461594,88010.0,87999.0,0.01156376]
[1767103876893,0.55461594,88010.0,88000.0,0.01136363]
[1767103877819,0.55461594,88010.0,88002.0,0.01136337]
[1767103877965,0.55461594,88012.0,88001.0,0.0113635]
[1767103878530,0.55461594,88012.0,88006.0,0.01136286]
[1767103878738,0.0114,88014.0,88012.0,0.00055]
[1767103878875,0.07957103,88014.0,87999.0,0.0570182]
[1767103879084,0.02276182,88014.0,88000.0,0.01136363]
[1767103879286,0.56597828,88010.0,87999.0,0.0116]
[1767103879496,0.01136247,88009.0,87999.0,0.0116]
[1767103879714,0.55461594,88010.0,87999.0,0.02296376]
[1767103880029,0.56597828,88010.0,87999.0,0.0116]
[1767103880237,0.56597828,88010.0,87999.0,0.02296376]
[1767103880238,0.55461594,88010.0,87999.0,0.02296376]
[1767103880898,0.55461594,88010.0,88000.0,0.01136363]
[1767103881507,0.01136221,88011.0,87999.0,0.02296376]
[1767103881710,0.55461594,88010.0,87999.0,0.02296376]
[1767103881914,0.56597828,88010.0,87999.0,0.0116]
[1767103882461,0.56597828,88010.0,87999.0,0.02296376]
[1767103882867,0.01136247,88009.0,87999.0,0.0116]
[1767103883044,0.01136273,88007.0,87999.0,0.0002]
[1767103883530,0.0113626,88008.0,87999.0,0.0002]
[1767103884247,0.01136247,88009.0,87999.0,0.0002]
[1767103884428,0.0113626,88008.0,87999.0,0.0002]
[1767103884626,0.62279029,88010.0,87999.0,0.0002]
[1767103884627,0.55461594,88010.0,87999.0,0.0002]
[1767103884831,0.56597828,88010.0,87999.0,0.0002]
[1767103885093,0.55461594,88010.0,87999.0,0.01156376]
[1767103885319,0.55461594,88010.0,88001.0,0.0113635]
[1767103885657,0.0114,88014.0,88010.0,0.00055]
[1767103885850,0.0114,88014.0,88012.0,0.05681002]
[1767103886096,0.0114,88016.0,88014.0,0.06817093]
[1767103886238,0.0114,88016.0,88014.0,0.01136182]
[1767103886440,0.0114,88016.0,88013.0,0.01136195]
[1767103886674,0.0114,88016.0,88012.0,0.01136208]
[1767103886936,0.01085,88016.0,88004.0,0.0114]
[1767103887142,0.01085,88016.0,88009.0,0.06817444]
[1767103887544,0.01085,88016.0,88009.0,0.01136247]
[1767103887998,0.01085,88016.0,88010.0,0.01136234]
[1767103888561,0.0002,88019.0,88009.0,0.01136247]
[1767103888784,0.0002,88019.0,88011.0,0.01136221]
[1767103889184,0.0002,88019.0,88010.0,0.01136234]
[1767103889392,0.0002,88019.0,88011.0,0.01136221]
[1767103890643,0.0002,88019.0,88012.0,0.01136208]
[1767103890824,0.0002,88019.0,88009.0,0.06817439]
[1767103891740,0.0002,88019.0,88010.0,0.01136234]
[1767103892164,0.0002,88019.0,88011.0,0.01136221]
[1767103892559,0.0002,88019.0,88012.0,0.01136208]
[1767103892774,0.0002,88019.0,88010.0,0.01136234]
[1767103892983,0.0002,88019.0,88011.0,0.01136221]
[1767103893304,0.0002,88019.0,88012.0,0.01136208]
[1767103893660,0.0114,88022.0,88016.0,0.01136157]
[1767103893907,0.0114,88022.0,88018.0,0.01136131]
[1767103894074,0.0114,88022.0,88016.0,0.01136157]
[1767103894991,0.0114,88022.0,88015.0,0.01136169]
[1767103895192,0.0114,88022.0,88013.0,0.01136195]
[1767103895593,0.0114,88022.0,88014.0,0.01136182]
[1767103897509,0.01136015,88027.0,88016.0,0.01136157]
[1767103897711,0.01136015,88027.0,88014.0,0.01136182]
[1767103898411,0.01136015,88027.0,88016.0,0.01136157]
[1767103898613,0.01136015,88027.0,88015.0,0.01136169]
[1767103899350,0.0114,88026.0,88015.0,0.01136169]
[1767103899648,0.02276027,88026.0,88014.0,0.01136182]
[1767103899851,0.0113604,88025.0,88009.0,0.01136247]
[1767103900081,0.000549,88014.0,88009.0,0.01136247]
[1767103900451,0.55461594,88020.0,88009.0,0.01136247]
[1767103900652,0.56597699,88020.0,88007.0,0.12749802]
[1767103900853,0.01136144,88017.0,88007.0,0.12694802]
[1767103901053,0.55461594,88017.0,88006.0,0.0114]
[1767103901255,0.29001279,88045.0,88003.0,0.12749802]
[1767103901458,0.01135924,88034.0,88018.0,0.19566542]
[1767103901643,0.55461594,88030.0,88019.0,0.01136118]
[1767103901845,0.0114,88029.0,88022.0,0.01136079]
[1767103902258,0.0114,88029.0,88021.0,0.01136092]
[1767103902661,0.0114,88029.0,88020.0,0.01136105]
[1767103902864,0.01136002,88028.0,88014.0,0.06817053]
[1767103903179,0.0113604,88025.0,88010.0,0.01136234]
[1767103903384,0.01136092,88021.0,88007.0,0.01136273]
[1767103903606,0.000549,88010.0,88007.0,0.01136273]
[1767103903761,0.01136118,88019.0,88007.0,0.01136273]
[1767103904225,0.57737699,88020.0,88008.0,0.0113626]
[1767103904412,0.01136118,88019.0,88007.0,0.01136273]
[1767103905091,0.01136131,88018.0,88005.0,0.02276299]
[1767103905435,0.01136131,88018.0,88006.0,0.01136286]
[1767103906236,0.01136131,88018.0,88007.0,0.01136273]
[1767103906991,0.01136118,88019.0,88007.0,0.01136273]
[1767103907927,0.01136118,88019.0,88008.0,0.0113626]
[1767103908463,0.01136118,88019.0,88007.0,0.01136273]
[1767103908584,0.56601594,88020.0,88008.0,0.0113626]
[1767103908585,0.57737699,88020.0,88008.0,0.0113626]
[1767103909186,0.01136144,88017.0,88005.0,0.0114]
[1767103909385,0.01136144,88017.0,88006.0,0.01136286]
[1767103909688,0.01136131,88018.0,88006.0,0.01136286]
[1767103909905,0.01136144,88017.0,88005.0,0.02276299]
[1767103910105,0.55461594,88015.0,88005.0,0.0114]
[1767103910328,0.01136144,88017.0,88005.0,0.02276299]
[1767103910529,0.01136144,88017.0,88005.0,0.01136299]
[1767103910886,0.01136157,88016.0,88004.0,0.01136311]
[1767103911404,0.01136131,88018.0,88005.0,0.01136299]
[1767103911818,0.01136144,88017.0,88006.0,0.01136286]
[1767103912018,0.01136144,88017.0,88005.0,0.01136299]
[1767103912222,0.01136144,88017.0,88006.0,0.01136286]
[1767103912635,0.01136144,88017.0,88005.0,0.01136299]
[1767103913483,0.01136157,88016.0,88004.0,0.01136311]
[1767103913605,0.05681186,88010.0,87997.0,0.0003574]
[1767103913807,0.000549,88004.0,87997.0,0.01172142]
[1767103914083,0.000549,88004.0,88000.0,0.01136363]
[1767103914206,0.55461594,88010.0,88000.0,0.01136363]
[1767103914655,0.55461594,88010.0,88001.0,0.0113635]
[1767103914858,0.0114,88012.0,88001.0,0.0113635]
[1767103915040,0.56597815,88011.0,87999.0,0.01156376]
[1767103915234,0.56597815,88011.0,88000.0,0.01136363]
[1767103915407,0.55461594,88011.0,88000.0,0.01136363]
[1767103915608,0.55461594,88011.0,88001.0,0.0113635]
[1767103916287,0.0114,88012.0,88002.0,0.01136337]
[1767103916438,0.0114,88012.0,87999.0,0.0002]
[1767103916604,0.55461594,88010.0,87999.0,0.0002]
[1767103916808,0.55461594,88010.0,88000.0,0.01136363]
[1767103917423,0.02276208,88012.0,88000.0,0.01136363]
[1767103917626,0.55461594,88010.0,87999.0,0.01156376]
[1767103917860,0.55461594,88010.0,88000.0,0.01136363]
[1767103918950,0.0114,88012.0,88001.0,0.0113635]
[1767103919158,0.55461594,88011.0,88001.0,0.0113635]
[1767103919481,0.55461594,88011.0,88000.0,0.01136363]
[1767103919773,0.56597815,88011.0,87999.0,0.01156376]
[1767103919959,0.55461594,88011.0,88000.0,0.01136363]
[1767103920439,0.55461594,88011.0,88004.0,0.01136311]
[1767103920641,0.0114,88012.0,88006.0,0.01136286]
[1767103920872,0.000549,88006.0,88003.0,0.01136324]
[1767103921042,0.0114,88012.0,88003.0,0.01136324]
[1767103921248,0.0114,88012.0,88004.0,0.01136311]
[1767103921448,0.0114,88012.0,88005.0,0.01136299]
[1767103921769,0.0114,88012.0,88003.0,0.01136324]
[1767103922166,0.0114,88012.0,88004.0,0.01136311]
[1767103922366,0.0114,88012.0,88000.0,0.55461594]
[1767103922570,0.0114,88014.0,88009.0,0.06817436]
[1767103922748,0.0114,88014.0,88010.0,0.01136234]
[1767103923091,0.0114,88014.0,88010.0,0.06817406]
[1767103923404,0.00758551,88014.0,88012.0,0.18086]
[1767103923553,0.0114,88020.0,88012.0,0.18086]
[1767103923963,0.0114,88020.0,88012.0,0.19222208]
[1767103924383,0.0114,88020.0,88015.0,0.01136169]
[1767103924767,0.0114,88020.0,88013.0,0.01136195]
[1767103925163,0.0114,88020.0,88015.0,0.01136169]